[Event "2nd Turkish League 2017"]
[Site "Konya"]
[Date "2017.07.20"]
[Round "2"]
[White "Demirbag, Alihan"]
[Black "Altunbay, Onder"]
[Result "1-0"]
[ECO "B23"]
[WhiteElo "1960"]
[BlackElo "1830"]
[Annotator "NA"]
[PlyCount "165"]
[EventType "team-tourn"]
[EventCountry "TUR"]
[SourceTitle "playchess.com"]
[Source "ChessBase"]
[SourceQuality "1"]
[TimeControl "5400+30"]

1. e4 {[%emt 0:00:30]} c5 {[%emt 0:01:00]} 2. Nc3 {[%emt 0:00:30]} a6 {[%emt 0:00:30]} 3. g3 {[%emt 0:00:00]} b5 {[%emt 0:03:30]} 4. Bg2 {[%emt 0:00:00]} Bb7 {[%emt 0:00:00]} 5. d3 {[%emt 0:00:30] LiveBook: 427 Games} e6 {[%emt 0:03:00]} 6. f4 {[%emt 0:00:30]} Be7 {[%emt 0:11:30] B23: Closed Sicilian: Lines without g3} 7. Nh3 {[%emt 0:00:30]} Nf6 {[%emt 0:04:30]} 8. O-O {[%emt 0:01:30]} b4 {[%emt 0:16:30]} 9. Ne2 {[%emt 0:00:30]} d6 {[%emt 0:02:30]} 10. Nf2 {[%emt 0:03:30]} d5 $146 {[%emt 0:02:30]} ({Predecessor:} 10... Nc6 11. g4 Nd7 12. a3 a5 13. Ng3 Qb6 14. axb4 axb4 15. Rxa8+ Bxa8 {1-0 (60) Vitiugov,N (2724)-Donchenko,A (2559) Caleta 2017}) 11. e5 {[%emt 0:02:30]} Nfd7 {[%emt 0:00:30]} 12. Qe1 {[%emt 0:26:30]} Qc7 {[%emt 0:05:30]} 13. c3 {[%emt 0:07:30]} (13. f5 $5) 13... bxc3 {[%emt 0:08:30]} 14. bxc3 {[%emt 0:00:00]} c4 {[%emt 0:00:30]} 15. d4 {[%emt 0:00:00]} Nb6 {[%emt 0:04:30]} (15... g6 $16) 16. Ng4 {[%emt 0:05:30]} h5 {[%emt 0:02:30]} 17. Ne3 {[%emt 0:00:30]} g6 {[%emt 0:00:30]} 18. h3 {[%emt 0:03:30]} N8d7 {[%emt 0:05:30]} 19. Nc2 {[%emt 0:22:30]} O-O-O {[%emt 0:03:30]} 20. Ba3 {[%emt 0:00:30]} Bxa3 {[%emt 0:00:30]} 21. Nxa3 {[%emt 0:00:30]} Qc6 {[%emt 0:00:30]} 22. Nc2 {[%emt 0:04:00]} Kb8 {[%emt 0:02:30]} 23. Qd2 {[%emt 0:04:32]} Ka7 {[%emt 0:02:16]} 24. g4 {[%emt 0:06:40]} hxg4 {[%emt 0:00:45]} 25. hxg4 {[%emt 0:00:04]} Rh4 {[%emt 0:01:22]} 26. Ne3 {[%emt 0:00:19]} Rg8 {[%emt 0:04:00]} 27. g5 {[%emt 0:00:11]} Nb8 {[%emt 0:02:01]} 28. Kf2 {[%emt 0:00:53]} Rgh8 {[%emt 0:01:05]} 29. Rh1 {[%emt 0:00:19]} Qe8 {[%emt 0:00:36]} 30. Rxh4 {[%emt 0:02:52]} Rxh4 {[%emt 0:00:05]} 31. Rh1 {[%emt 0:00:35]} Rxh1 {[%emt 0:00:30]} 32. Bxh1 {[%emt 0:00:30]} Qh8 {[%emt 0:00:30]} 33. Bg2 {[%emt 0:00:30]} Qh4+ {[%emt 0:00:30]} 34. Kf1 {[%emt 0:00:30]} Nc6 {[%emt 0:00:30]} 35. Qe1 {[%emt 0:00:30]} Qxe1+ {[%emt 0:00:30]} 36. Kxe1 {[%emt 0:00:30]} Nd8 {[%emt 0:00:00]} 37. Kd2 {[%emt 0:00:00]} Bc6 {[%emt 0:00:31]} 38. Ng1 {[%emt 0:01:08]} Be8 {[%emt 0:00:48]} 39. Nf3 {[%emt 0:02:54]} Nc8 {[%emt 0:02:18]} 40. Nh4 {[%emt 0:02:19]} Ne7 {[%emt 0:01:35]} 41. Bf3 {[%emt 0:00:44]} Kb6 {[%emt 0:01:01]} 42. Bd1 {[%emt 0:01:21]} Ka5 {[%emt 0:01:10]} 43. Bc2 {[%emt 0:00:01]} Bc6 {[%emt 0:03:10]} 44. Ng4 {[%emt 0:00:14]} Kb5 {[%emt 0:01:29]} 45. Nf6 {[%emt 0:01:40]} Kb6 {[%emt 0:01:13]} 46. Ng4 {[%emt 0:01:32]} Kb5 {[%emt 0:00:35]} 47. Nh6 {[%emt 0:00:24]} Be8 {[%emt 0:00:51]} 48. Ng2 {[%emt 0:00:40]} Kb6 {[%emt 0:02:35]} 49. Ne3 $14 {[%emt 0:00:02]} Ka5 {[%emt 0:01:15]} 50. Bd1 {[%emt 0:00:01]} Ba4 {[%emt 0:00:29]} 51. Bxa4 {[%emt 0:00:55]} Kxa4 {[%emt 0:00:30]} 52. Kc2 {[%emt 0:00:29]} a5 {[%emt 0:00:47]} 53. Kb2 {[%emt 0:00:31]} Nec6 {[%emt 0:01:05]} 54. Neg4 {[%emt 0:00:17]} Ne7 {[%emt 0:00:12]} 55. Nf6 {[%emt 0:00:36]} Nec6 {[%emt 0:01:04]} 56. Ne8 {[%emt 0:00:17]} Nb8 {[%emt 0:00:08]} 57. Nd6 {[%emt 0:01:00]} Nd7 {[%emt 0:00:09]} 58. Nhxf7 {[%emt 0:00:35]} Nxf7 {[%emt 0:00:30]} 59. Nxf7 {[%emt 0:00:00]} Nf8 {[%emt 0:00:08]} 60. f5 {[%emt 0:01:13]} exf5 {[%emt 0:01:01]} 61. Nd8 {[%emt 0:00:30]} f4 {[%emt 0:00:30]} 62. Kc2 {[%emt 0:00:00]} f3 {[%emt 0:00:11]} 63. Kd2 {[%emt 0:00:01]} f2 {[%emt 0:00:30]} 64. Ke2 {[%emt 0:00:30]} Ka3 {[%emt 0:00:00]} 65. e6 {[%emt 0:00:30]} Nxe6 {[%emt 0:00:00]} 66. Nxe6 {[%emt 0:00:30]} f1=Q+ {[%emt 0:00:27]} 67. Kxf1 {[%emt 0:00:30]} Kxa2 {[%emt 0:00:00]} 68. Nc7 {[%emt 0:01:37]} Kb2 {[%emt 0:00:50]} 69. Nxd5 {[%emt 0:00:22]} a4 {[%emt 0:00:27]} 70. Nb6 {[%emt 0:00:13]} Kxc3 {[%emt 0:00:10]} 71. Nxa4+ {[%emt 0:00:30]} Kxd4 {[%emt 0:00:00]} 72. Kf2 {[%emt 0:00:27]} Ke4 {[%emt 0:00:55]} 73. Kg3 {[%emt 0:00:00]} Kf5 {[%emt 0:00:33]} 74. Kh4 {[%emt 0:00:01]} Kf4 {[%emt 0:00:00]} 75. Nb6 {[%emt 0:00:48]} c3 {[%emt 0:01:08]} 76. Nd5+ {[%emt 0:00:30]} Ke5 {[%emt 0:00:30]} 77. Nxc3 {[%emt 0:00:30]} Ke6 {[%emt 0:00:00]} 78. Kg4 {[%emt 0:00:00]} Kf7 {[%emt 0:00:03]} 79. Kf4 {[%emt 0:00:13]} Ke6 {[%emt 0:00:00]} 80. Ne4 {[%emt 0:00:00]} Kf7 {[%emt 0:00:00]} 81. Ke5 {[%emt 0:00:00]} Kg7 {[%emt 0:00:00]} 82. Ke6 {[%emt 0:00:00]} Kh7 {[%emt 0:00:00]} 83. Kf6 {[%emt 0:00:00]} 1-0

[Event "2nd Turkish League 2017"]
[Site "Konya"]
[Date "2017.07.18"]
[Round "2"]
[White "Kelebek, Emre"]
[Black "Eren, Baran"]
[Result "0-1"]
[ECO "B47"]
[WhiteElo "1907"]
[BlackElo "2143"]
[Annotator "NA RC"]
[PlyCount "48"]
[EventType "team-tourn"]
[EventCountry "TUR"]
[SourceTitle "playchess.com"]
[Source "ChessBase"]
[SourceQuality "1"]
[TimeControl "5400+30"]

1. e4 {[%emt 0:00:30]} c5 {[%emt 0:01:00]} 2. Nf3 {[%emt 0:00:30]} e6 {[%emt 0:00:00]} 3. d4 {[%emt 0:00:00]} cxd4 {[%emt 0:00:00]} 4. Nxd4 {[%emt 0:00:00]} Nc6 {[%emt 0:00:00]} 5. Nc3 {[%emt 0:00:30]} Qc7 {[%emt 0:00:00]} 6. Ndb5 {[%emt 0:07:30]} Qb8 {[%emt 0:00:30]} 7. Be3 {[%emt 0:01:30]} a6 {[%emt 0:00:30]} 8. Nd4 {[%emt 0:00:00]} Nf6 {[%emt 0:01:30]} 9. Be2 {B47: Sicilian: Taimanov: 5 Nc3 Qc7 6 f4, 6 g3 and 6 Be2} Bb4 {[%emt 0:02:30]} 10. Nxc6 {[%emt 0:10:30]} bxc6 {[%emt 0:01:30]} 11. Bf3 {[%emt 0:01:30]} d5 {[%emt 0:05:30]} 12. exd5 {[%emt 0:04:30]} cxd5 {[%emt 0:00:00]} 13. O-O {[%emt 0:00:30]} O-O {[%emt 0:00:00]} 14. Na4 $146 {[%emt 0:12:30]} ({Predecessor:} 14. Bg5 Bd6 15. g3 Be5 {0-1 (60) Sztokbant,B (1979)-Barbosa,E (2383) Sao Paulo 2011}) 14... a5 {[%emt 0:07:30]} 15. Nb6 {[%emt 0:08:30]} Ra6 {[%emt 0:00:30]} 16. Nxc8 {[%emt 0:02:30]} Rxc8 {[%emt 0:02:30]} 17. Qe2 {[%emt 0:24:30]} Rac6 {[%emt 0:01:30]} 18. c3 {[%emt 0:00:00]} Bd6 {[%emt 0:01:30]} 19. g3 {[%emt 0:00:00]} Nd7 {[%emt 0:02:30]} 20. Bd4 {[%emt 0:05:06]} Bc5 {[%emt 0:01:30]} 21. Rfd1 {[%emt 0:06:50]} Bxd4 {[%emt 0:00:30]} 22. Rxd4 {[%emt 0:00:25]} Rb6 {[%emt 0:00:30]} 23. Be4 {[%emt 0:11:40]} (23. Rb1 $142) 23... Nf6 $19 {[%emt 0:04:30]} ({Weaker is} 23... dxe4 24. Rxd7 Rxb2 25. Qxe4 $11) 24. Bf3 {[%emt 0:01:48]} Rxb2 {[%emt 0:00:30]} 0-1

[Event "2nd Turkish League 2017"]
[Site "Konya"]
[Date "2017.07.20"]
[Round "2"]
[White "Ugur, Can Atakan"]
[Black "Alaz, Ahmet Efekan"]
[Result "1/2-1/2"]
[ECO "B07"]
[WhiteElo "1889"]
[BlackElo "2015"]
[Annotator "NA"]
[PlyCount "111"]
[EventType "team-tourn"]
[EventCountry "TUR"]
[SourceTitle "playchess.com"]
[Source "ChessBase"]
[SourceQuality "1"]
[TimeControl "5400+30"]

1. e4 {[%emt 0:00:30]} d6 {[%emt 0:02:00]} 2. d4 {[%emt 0:00:30]} Nf6 {[%emt 0:00:30]} 3. Bd3 {[%emt 0:00:30]} Nbd7 {[%emt 0:00:30]} 4. Nf3 {[%emt 0:04:30] B07: Pirc Defence: Miscellaneous Systems} e5 {[%emt 0:00:00]} 5. dxe5 {[%emt 0:01:30]} dxe5 {[%emt 0:00:00]} 6. Bg5 {[%emt 0:00:00]} (6. O-O Be7 7. Nbd2 c6 8. c3 O-O 9. Bc2 Qc7 10. Qe2 a5 11. Rd1 a4 12. Nf1 Nc5 13. Ng3 {½-½ (85) Bogdanovich,S (2590)-Dominguez Perez,L (2732) Berlin 2015}) 6... Be7 {[%emt 0:02:30]} 7. O-O {[%emt 0:01:00]} c6 {[%emt 0:01:30]} 8. Nbd2 {[%emt 0:02:30]} Qc7 {[%emt 0:00:30]} 9. Nb3 {[%emt 0:04:30]} h6 $146 {[%emt 0:02:30]} ({Predecessor:} 9... Nf8 10. h3 Ng6 11. Nh4 Nxh4 12. Bxh4 O-O 13. Qe2 {0-1 (37) Ruiz Diez,J (2319)-Ramo Frontinan,C (2348) Spain 2006}) 10. Bd2 {[%emt 0:09:30]} Nf8 {[%emt 0:02:30]} 11. Bc3 {[%emt 0:02:30]} Ng6 {[%emt 0:01:30]} 12. Nfd2 {[%emt 0:08:30]} Be6 {[%emt 0:04:30]} 13. Re1 {[%emt 0:00:30]} Rd8 {[%emt 0:00:30]} 14. Qc1 {[%emt 0:03:30]} Ng4 {[%emt 0:18:30]} 15. Bc4 {[%emt 0:05:30]} Qb6 {[%emt 0:10:30]} 16. Rf1 {[%emt 0:01:30]} Bxc4 $1 {[%emt 0:01:30]} 17. Nxc4 {[%emt 0:00:30]} Qa6 $1 {[%emt 0:01:30]} 18. Ne3 {[%emt 0:07:30]} Bg5 {[%emt 0:06:30]} 19. Bd2 {[%emt 0:04:30]} Nf4 {[%emt 0:04:30]} 20. Qe1 {[%emt 0:03:30]} Nf6 {[%emt 0:06:30]} 21. Nf5 {[%emt 0:04:30]} g6 {[%emt 0:08:30]} 22. Bxf4 {[%emt 0:08:30]} Bxf4 {[%emt 0:01:30]} 23. Ng3 {[%emt 0:03:30]} Qc4 {[%emt 0:01:30]} 24. Qa5 {[%emt 0:06:34]} O-O {[%emt 0:03:37]} 25. Qxa7 {[%emt 0:02:04]} Bxg3 {[%emt 0:05:36]} 26. hxg3 {[%emt 0:01:06]} Nxe4 {[%emt 0:03:14]} 27. Qxb7 {[%emt 0:02:58]} Qxc2 {[%emt 0:04:24]} 28. Rac1 {[%emt 0:01:43]} Qxb2 {[%emt 0:00:08]} 29. Qxc6 {[%emt 0:00:51]} Qxa2 {[%emt 0:01:08]} 30. Qxe4 {[%emt 0:00:30]} Qxb3 {[%emt 0:00:30]} 31. Qxe5 {[%emt 0:00:00]} Rfe8 {[%emt 0:02:08]} 32. Qf4 {[%emt 0:00:44]} Kg7 {[%emt 0:01:26]} 33. Rce1 {[%emt 0:05:40]} Qd5 {[%emt 0:01:17]} 34. Qa4 {[%emt 0:01:04]} Rxe1 {[%emt 0:01:15]} 35. Rxe1 {[%emt 0:00:05]} Ra8 {[%emt 0:00:54]} 36. Qb4 {[%emt 0:00:24]} Qf5 {[%emt 0:02:01]} 37. Qc3+ {[%emt 0:00:14]} Qf6 {[%emt 0:00:12]} 38. Qb3 {[%emt 0:01:00]} Ra1 {[%emt 0:00:23]} 39. Qe3 $11 {[%emt 0:01:53]} h5 {[%emt 0:01:11]} 40. Qe2 {[%emt 0:01:16]} Qc3 {[%emt 0:00:37]} 41. Rxa1 {[%emt 0:00:30]} Qxa1+ {[%emt 0:00:00]} 42. Kh2 {[%emt 0:00:19]} Qd4 {[%emt 0:00:08]} 43. Qc2 {[%emt 0:01:29]} Kf6 {[%emt 0:00:25]} 44. Qe2 {[%emt 0:00:20]} Qc5 {[%emt 0:01:12]} 45. Kg1 {[%emt 0:00:56]} Qc1+ {[%emt 0:00:30]} 46. Kh2 {[%emt 0:00:00]} Qb1 {[%emt 0:00:06]} 47. Qd2 {[%emt 0:00:49]} Ke6 {[%emt 0:00:30]} 48. Qe3+ {[%emt 0:00:00]} Kd7 {[%emt 0:00:34]} 49. Qd4+ {[%emt 0:00:00]} Ke6 {[%emt 0:00:29]} 50. Qe3+ {[%emt 0:00:03]} Kf6 {[%emt 0:00:34]} 51. Qd4+ {[%emt 0:00:03]} Ke6 {[%emt 0:01:22]} 52. Qe3+ {[%emt 0:00:30]} Kd7 {[%emt 0:00:30]} 53. Qd4+ {[%emt 0:00:30]} Ke8 {[%emt 0:00:30]} 54. Qe5+ {[%emt 0:00:30]} Kf8 {[%emt 0:00:30]} 55. Qh8+ {[%emt 0:00:30]} Ke7 {[%emt 0:00:30]} 56. Qe5+ {[%emt 0:00:00]} 1/2-1/2

[Event "2nd Turkish League 2017"]
[Site "Konya"]
[Date "2017.07.20"]
[Round "2"]
[White "Percin, Baris"]
[Black "Cannesar, Rad"]
[Result "1-0"]
[ECO "B25"]
[WhiteElo "1869"]
[BlackElo "1979"]
[Annotator "NA"]
[PlyCount "95"]
[EventType "team-tourn"]
[EventCountry "TUR"]
[SourceTitle "playchess.com"]
[Source "ChessBase"]
[SourceQuality "1"]
[TimeControl "5400+30"]

1. e4 {[%emt 0:00:30]} c5 {[%emt 0:01:00]} 2. Nc3 {[%emt 0:00:30]} Nc6 {[%emt 0:00:30]} 3. g3 {[%emt 0:00:30]} g6 {[%emt 0:00:00]} 4. Bg2 {[%emt 0:00:00]} Bg7 {[%emt 0:00:00]} 5. d3 {[%emt 0:00:00]} d6 {[%emt 0:04:30]} 6. f4 {[%emt 0:00:00]} e6 {[%emt 0:02:30]} 7. Nf3 {[%emt 0:00:00]} Nge7 {[%emt 0:01:30]} 8. O-O {[%emt 0:00:00]} O-O {[%emt 0:01:30]} 9. Be3 {[%emt 0:00:00]} Nd4 {[%emt 0:00:30]} 10. e5 {[%emt 0:00:00]} Nef5 {[%emt 0:08:30]} 11. Bf2 {[%emt 0:00:00]} Nxf3+ {[%emt 0:02:30]} 12. Qxf3 {[%emt 0:00:00]} Nd4 {[%emt 0:02:30]} 13. Qd1 {[%emt 0:00:00]} dxe5 {[%emt 0:07:30]} 14. fxe5 {[%emt 0:00:30]} Bxe5 {[%emt 0:01:30]} 15. Ne4 {[%emt 0:00:00]} c4 {[%emt 0:09:30] B25: Closed Sicilian: 3 g3, lines without early Be3} (15... b6 $11) (15... Bg7 16. c3 Nf5 17. Nxc5 Qc7 18. d4 Rb8 19. g4 Nd6 20. Nd3 b6 21. Bg3 Rd8 22. Ne5 Bb7 23. Qe2 Bxg2 24. Qxg2 Bxe5 25. Bxe5 {1-0 (32) Muzychuk,A (2560)-Lagno,K (2543) Khanty-Mansiysk 2014}) 16. c3 {[%emt 0:06:00]} Nc6 {[%emt 0:05:30]} 17. Bc5 {[%emt 0:02:30]} cxd3 {[%emt 0:05:30]} 18. Bxf8 {[%emt 0:02:30]} Kxf8 {[%emt 0:00:00]} 19. Qf3 $146 {[%emt 0:02:30]} ({Predecessor:} 19. Qd2 Kg7 20. Rad1 f5 21. Nc5 Bf6 22. Qf2 Qc7 23. Rxd3 {1-0 (49) Liemann,M-Wolf,U Muenster 1991}) 19... f5 {[%emt 0:05:00]} 20. Rad1 {[%emt 0:01:30]} Qb6+ {[%emt 0:03:30]} 21. Qf2 {[%emt 0:01:30]} Bc7 {[%emt 0:09:30]} 22. Kh1 {[%emt 0:04:30]} Ne5 {[%emt 0:12:45]} 23. Nc5 {[%emt 0:25:30]} Ng4 {[%emt 0:00:57]} 24. Qd4 {[%emt 0:00:30]} e5 {[%emt 0:04:20]} 25. Qxg4 {[%emt 0:03:30]} Qxc5 {[%emt 0:00:21]} 26. Rxd3 {[%emt 0:02:30]} Be6 {[%emt 0:04:14]} 27. Qh4 {[%emt 0:02:30]} Qe7 {[%emt 0:04:05]} 28. Qh6+ {[%emt 0:00:30]} Qg7 {[%emt 0:00:13]} 29. Qxg7+ {[%emt 0:00:30]} Kxg7 {[%emt 0:00:05]} 30. Rfd1 $11 {[%emt 0:00:30]} (30. Bxb7 $16 Rb8 31. Bd5) 30... Kf6 {[%emt 0:01:31]} 31. Bd5 {[%emt 0:04:30]} e4 {[%emt 0:00:49]} 32. R3d2 {[%emt 0:00:30]} e3 {[%emt 0:00:47]} 33. Rd3 {[%emt 0:00:30]} e2 {[%emt 0:00:41]} 34. Re1 {[%emt 0:00:30]} Rd8 {[%emt 0:00:27]} 35. c4 {[%emt 0:00:30]} Re8 {[%emt 0:00:45]} 36. Bxe6 {[%emt 0:02:30]} Rxe6 {[%emt 0:00:04]} 37. b4 {[%emt 0:00:30]} f4 {[%emt 0:01:59]} 38. gxf4 {[%emt 0:03:30]} Bxf4 {[%emt 0:00:04]} 39. Rf3 {[%emt 0:01:30]} Kg5 {[%emt 0:00:03]} 40. Rf2 {[%emt 0:00:30]} Bd2 {[%emt 0:00:06]} 41. Rexe2 {[%emt 0:00:30]} Rxe2 {[%emt 0:00:30]} 42. Rxe2 {[%emt 0:00:30]} Bxb4 {[%emt 0:00:00]} 43. Rb2 {[%emt 0:01:30]} a5 {[%emt 0:00:00]} 44. a3 {[%emt 0:00:00]} Bxa3 {[%emt 0:00:00]} 45. Rb5+ {[%emt 0:01:00]} Kf4 {[%emt 0:00:48]} 46. Rxa5 {[%emt 0:00:00]} Bf8 {[%emt 0:02:47]} 47. Ra7 {[%emt 0:01:00]} b6 {[%emt 0:02:36]} 48. Rf7+ {[%emt 0:00:00]} 1-0

[Event "2nd Turkish League 2017"]
[Site "Konya"]
[Date "2017.07.18"]
[Round "2"]
[White "Sahinoglu, Hakan"]
[Black "Kurdas, Halil Ibrahim"]
[Result "0-1"]
[ECO "D48"]
[WhiteElo "1835"]
[BlackElo "1774"]
[Annotator "NA"]
[PlyCount "36"]
[EventType "team-tourn"]
[EventCountry "TUR"]
[SourceTitle "playchess.com"]
[Source "ChessBase"]
[SourceQuality "1"]
[TimeControl "5400+30"]

1. d4 {[%emt 0:00:30]} d5 {[%emt 0:01:00]} 2. c4 {[%emt 0:00:00]} dxc4 {[%emt 0:00:30]} 3. Nf3 {[%emt 0:00:00]} Nf6 {[%emt 0:00:30]} 4. e3 {[%emt 0:00:00]} e6 {[%emt 0:00:30]} 5. Bxc4 {[%emt 0:00:00]} a6 {[%emt 0:00:30]} 6. Nc3 {[%emt 0:00:30]} b5 {[%emt 0:00:00]} 7. Bd3 {[%emt 0:00:00]} c5 {[%emt 0:00:00]} 8. O-O {[%emt 0:00:00]} Bb7 {[%emt 0:00:30]} 9. Qe2 {[%emt 0:00:30]} Nbd7 {[%emt 0:00:30]} 10. Rd1 {[%emt 0:00:30]} Qb6 {[%emt 0:01:30]} 11. Bc2 {[%emt 0:00:30]} Rc8 {[%emt 0:03:30]} 12. e4 {[%emt 0:02:30]} cxd4 {[%emt 0:02:30]} 13. Nxd4 {[%emt 0:00:30]} Bc5 {[%emt 0:15:30]} 14. Be3 $15 {[%emt 0:10:30]} Ne5 {[%emt 0:00:30]} 15. a4 {[%emt 0:02:30]} b4 {[%emt 0:04:30]} 16. a5 {[%emt 0:00:30]} Qc7 {[%emt 0:00:00]} 17. Na4 {[%emt 0:08:30]} Neg4 {[%emt 0:01:00]} 18. Nxc5 {[%emt 0:00:30]} Qxh2+ {[%emt 0:00:30]} 0-1

[Event "2nd Turkish League 2017"]
[Site "Konya"]
[Date "2017.07.20"]
[Round "2"]
[White "Turkmen, Huseyin Nafizhan"]
[Black "Ertas, Deniz"]
[Result "0-1"]
[ECO "B01"]
[WhiteElo "1817"]
[BlackElo "1799"]
[Annotator "NA"]
[PlyCount "82"]
[EventType "team-tourn"]
[EventCountry "TUR"]
[SourceTitle "playchess.com"]
[Source "ChessBase"]
[SourceQuality "1"]
[TimeControl "5400+30"]

1. e4 {[%emt 0:00:30]} d5 {[%emt 0:01:00]} 2. exd5 {[%emt 0:00:30]} Qxd5 {[%emt 0:00:00]} 3. Nc3 {[%emt 0:00:30]} Qa5 {[%emt 0:00:00]} 4. d4 {[%emt 0:00:30]} Nf6 {[%emt 0:00:30]} 5. Bd3 {[%emt 0:01:30] LiveBook: 17 Games} (5. a3 $14) 5... c6 {[%emt 0:05:30]} 6. Nge2 {[%emt 0:04:30]} Bf5 {[%emt 0:04:30] B01: Scandinavian Defence} 7. Ng3 {[%emt 0:07:30]} Bxd3 {[%emt 0:02:30]} 8. Qxd3 {[%emt 0:00:30]} e6 {[%emt 0:00:30]} 9. O-O {[%emt 0:03:30]} Nbd7 {[%emt 0:04:30]} 10. a3 $146 {[%emt 0:02:30]} ({Predecessor:} 10. Bf4 Be7 11. Rfe1 O-O 12. Nf5 Bb4 13. Ne3 {0-1 (47) Morandini,R-Tempone,M (2445) Buenos Aires 1998}) 10... Be7 {[%emt 0:12:30]} 11. Bd2 {[%emt 0:05:30]} O-O {[%emt 0:00:30]} 12. Nce4 {[%emt 0:18:30]} Qc7 {[%emt 0:00:30]} 13. c4 {[%emt 0:01:30]} Rad8 {[%emt 0:02:30]} 14. b4 {[%emt 0:10:30]} Ne5 {[%emt 0:15:30]} 15. Qc3 {[%emt 0:07:30]} Neg4 {[%emt 0:00:30]} 16. Rad1 {[%emt 0:06:30]} Nxe4 {[%emt 0:00:30]} 17. Qf3 {[%emt 0:01:30]} Nxd2 {[%emt 0:01:30]} 18. Rxd2 {[%emt 0:03:30]} Nf6 {[%emt 0:00:30]} 19. Re1 {[%emt 0:00:30]} Rd7 {[%emt 0:00:30]} 20. d5 {[%emt 0:04:30]} cxd5 {[%emt 0:02:30]} 21. cxd5 {[%emt 0:02:37]} Rxd5 {[%emt 0:00:30]} 22. Rde2 {[%emt 0:00:54]} Rfd8 {[%emt 0:00:30]} 23. h4 {[%emt 0:02:28]} Rd3 {[%emt 0:03:30]} 24. Re3 {[%emt 0:02:13]} Rxe3 {[%emt 0:00:00]} 25. Qxe3 {[%emt 0:00:34]} Qb6 {[%emt 0:05:00]} 26. Qf3 {[%emt 0:03:34]} Rd2 {[%emt 0:09:30]} 27. Nf1 {[%emt 0:00:43]} Rc2 {[%emt 0:05:30]} 28. Ne3 {[%emt 0:02:11]} Rc3 {[%emt 0:03:30]} 29. h5 {[%emt 0:02:49]} Qc6 {[%emt 0:00:30]} 30. Qd1 {[%emt 0:02:07]} h6 {[%emt 0:03:15]} 31. Qd4 {[%emt 0:01:51]} Bd6 {[%emt 0:03:06]} 32. g3 {[%emt 0:01:06]} Bc7 {[%emt 0:05:41]} 33. b5 {[%emt 0:00:42]} Qc5 {[%emt 0:00:39]} 34. Qd2 {[%emt 0:00:16]} Ne4 {[%emt 0:02:45]} 35. Qd7 {[%emt 0:00:38]} Ng5 {[%emt 0:01:33]} 36. Qc8+ {[%emt 0:00:31]} Kh7 {[%emt 0:01:29]} 37. Qxb7 {[%emt 0:00:06] [#]} Bxg3 $19 {[%emt 0:01:24]} 38. Qg2 {[%emt 0:01:02]} Rc1 {[%emt 0:01:46]} 39. Nd1 {[%emt 0:01:02]} Bxf2+ {[%emt 0:00:12]} 40. Nxf2 {[%emt 0:00:00]} Rxe1+ {[%emt 0:00:34]} 41. Kh2 {[%emt 0:00:00]} Qe5+ {[%emt 0:00:26]} 0-1

[Event "2nd Turkish League 2017"]
[Site "Konya"]
[Date "2017.07.20"]
[Round "2"]
[White "Yuksel, Davut Can"]
[Black "Ozturk, Emir"]
[Result "0-1"]
[ECO "E12"]
[WhiteElo "1773"]
[BlackElo "2202"]
[Annotator "ChessBase"]
[PlyCount "102"]
[EventType "team-tourn"]
[EventCountry "TUR"]
[SourceTitle "playchess.com"]
[Source "ChessBase"]
[SourceQuality "1"]
[TimeControl "5400+30"]

1. d4 {[%emt 0:00:30]} Nf6 {[%emt 0:01:00]} 2. c4 {[%emt 0:00:30]} e6 {[%emt 0:00:30]} 3. Nf3 {[%emt 0:00:00]} b6 {[%emt 0:00:30]} 4. a3 {[%emt 0:00:00]} Ba6 {[%emt 0:02:30]} 5. Qc2 {[%emt 0:01:30]} Bb7 {[%emt 0:01:30]} 6. Nc3 {[%emt 0:00:30]} d5 {[%emt 0:00:30]} 7. cxd5 {[%emt 0:01:30]} Nxd5 {[%emt 0:00:30]} 8. e4 {[%emt 0:00:30]} Nxc3 {[%emt 0:00:30]} 9. bxc3 {[%emt 0:00:30]} Nd7 {[%emt 0:01:30]} 10. Bd3 {[%emt 0:01:30]} Be7 {[%emt 0:01:30]} 11. O-O {[%emt 0:01:30]} O-O {[%emt 0:00:30]} 12. Rd1 {[%emt 0:01:30]} Re8 {[%emt 0:06:30]} 13. Bb2 {[%emt 0:07:30]} Bf8 {[%emt 0:11:30]} 14. Rac1 {[%emt 0:05:30]} Qe7 {[%emt 0:01:30]} 15. c4 {[%emt 0:05:30]} g6 {[%emt 0:09:30]} 16. Qe2 {[%emt 0:15:30]} Bg7 {[%emt 0:04:30]} 17. h3 {[%emt 0:10:30]} e5 {[%emt 0:12:30]} 18. c5 {[%emt 0:10:30]} c6 {[%emt 0:05:30]} 19. Qc2 {[%emt 0:14:30]} exd4 {[%emt 0:04:30]} 20. cxb6 {[%emt 0:01:52]} c5 {[%emt 0:06:30]} 21. bxa7 {[%emt 0:00:12]} Rxa7 {[%emt 0:02:30]} 22. a4 {[%emt 0:03:54]} Bc6 {[%emt 0:05:40]} 23. Re1 {[%emt 0:01:51]} Bxa4 {[%emt 0:00:52]} 24. Qe2 {[%emt 0:03:29]} Rb8 {[%emt 0:04:55]} 25. Ra1 {[%emt 0:01:04]} Rba8 {[%emt 0:01:13]} 26. Rec1 {[%emt 0:01:12]} Bh6 {[%emt 0:02:15]} 27. Rcb1 {[%emt 0:01:43]} Bc6 {[%emt 0:00:13]} 28. Rxa7 {[%emt 0:00:29]} Rxa7 {[%emt 0:00:03]} 29. Bc1 {[%emt 0:00:47]} Bf8 {[%emt 0:00:30]} 30. Bf4 {[%emt 0:02:51]} Qf6 {[%emt 0:03:51]} 31. Bg5 {[%emt 0:01:19]} Qe6 {[%emt 0:00:26]} 32. Nd2 {[%emt 0:01:50]} Ne5 {[%emt 0:00:48]} 33. Rb8 {[%emt 0:02:14]} Qd6 {[%emt 0:02:36]} 34. Rd8 {[%emt 0:00:03]} Ra1+ {[%emt 0:00:40]} 35. Nf1 {[%emt 0:00:01]} Qc7 {[%emt 0:00:16]} 36. Qb2 {[%emt 0:01:17]} Ra8 {[%emt 0:02:01]} 37. Rxa8 {[%emt 0:00:30]} Bxa8 {[%emt 0:00:00]} 38. Qa2 {[%emt 0:01:10]} Bb7 {[%emt 0:00:42]} 39. Bf4 {[%emt 0:01:21]} Nf3+ {[%emt 0:01:19]} 40. gxf3 {[%emt 0:00:30]} Qxf4 {[%emt 0:00:30]} 41. Kg2 {[%emt 0:00:00]} Bc8 {[%emt 0:00:08]} 42. Qd2 {[%emt 0:00:36]} Qh4 {[%emt 0:00:18]} 43. Ng3 {[%emt 0:01:07]} Bd6 {[%emt 0:00:26]} 44. Qe1 {[%emt 0:00:31]} Bxh3+ {[%emt 0:00:43]} 45. Kg1 {[%emt 0:00:30]} Be5 {[%emt 0:00:24]} 46. Bc4 {[%emt 0:00:31]} Qf4 {[%emt 0:00:49]} 47. Kh2 {[%emt 0:00:28]} Bd7 {[%emt 0:00:14]} 48. Kg2 {[%emt 0:00:44]} h5 {[%emt 0:00:03]} 49. Qh1 {[%emt 0:00:09]} h4 {[%emt 0:00:37]} 50. Ne2 {[%emt 0:00:03]} h3+ {[%emt 0:00:16]} 51. Kf1 {[%emt 0:00:30]} Qd2 {[%emt 0:00:02]} 0-1